bitfinex-derivatives/quotes_ETHF0:USTF0_20241231
["timestamp","ask_amount","ask_price","bid_price","bid_amount"]
[1735617567479,0.29971,3342.4,3342.1,0.4404]
[1735617567875,0.29972,3342.3,3342.1,0.4404]
[1735617576389,1.37648459,3342.3,3342.1,0.4404]
[1735617577294,0.29972,3342.2,3342.1,0.4404]
[1735617577589,1.07676459,3342.3,3342.1,0.4404]
[1735617577787,1.37648459,3342.3,3342.1,0.4404]
[1735617583490,2.34765947,3342.4,3342.1,0.4404]
[1735617583692,2.34765947,3342.4,3342.3,0.29971]
[1735617584087,4.58426459,3342.5,3342.2,0.74172]
[1735617584293,1.07676459,3342.3,3342.2,0.442]
[1735617584889,1.07676459,3342.3,3342.1,0.74013]
[1735617586193,3.42442406,3342.3,3342.1,0.74013]
[1735617586790,2.34765947,3342.3,3342.2,0.29972]
[1735617589800,3.72412406,3342.5,3342.2,5.45836526]
[1735617589994,3.72412406,3342.5,3342.3,0.73241]
[1735617590199,3.42442406,3342.5,3342.3,0.73241]
[1735617590400,3.42442406,3342.5,3342.3,0.4327]
[1735617590697,3.42442406,3342.5,3342.3,0.73241]
[1735617590899,3.42442406,3342.5,3342.3,0.4327]
[1735617591093,0.2997,3342.4,3342.3,0.4327]
[1735617592097,2.64735947,3342.4,3342.3,0.4327]
[1735617592591,2.34765947,3342.4,3342.3,0.73241]
[1735617593702,0.29971,3342.4,3342.2,7.3287639]
[1735617594703,2.64736947,3342.4,3342.2,0.29972]
[1735617596507,2.64736947,3342.4,3342.1,7.4694439]
[1735617596508,0.29972,3342.2,3342.1,7.0290439]
[1735617596709,1.37648459,3342.2,3342.1,7.0290439]
[1735617596910,0.29973,3342.1,3342.0,9.36757427]
[1735617597320,1.07676459,3342.2,3342.0,9.36757427]
[1735617597617,1.37649459,3342.2,3342.0,9.36757427]
[1735617598212,4.90963152,3342.2,3341.9,41.52855]
[1735617599516,2.35783292,3342.0,3341.9,41.52855]
[1735617599919,2.35783292,3342.0,3341.9,41.2288]
[1735617600517,2.35783292,3342.0,3341.9,46.69533973]
[1735617600713,3.43459751,3342.0,3341.9,46.69533973]
[1735617601313,2.35783292,3342.0,3341.9,41.2288]
[1735617601519,2.35783292,3342.0,3341.9,41.52855]
[1735617601914,2.35783292,3342.0,3341.9,41.2288]
[1735617602121,2.35783292,3342.0,3341.9,41.52855]
[1735617602420,2.35783292,3342.0,3341.9,48.58887641]
[1735617602822,3.43459751,3342.0,3341.9,48.28912641]
[1735617603123,3.73433751,3342.0,3341.9,48.28912641]
[1735617603320,3.43459751,3342.0,3341.9,7.48912641]
[1735617603716,3.73433751,3342.0,3341.9,7.48912641]
[1735617603917,1.07676459,3342.0,3341.9,0.4288]
[1735617604117,1.37650459,3342.0,3341.9,0.4288]
[1735617605015,4.90964152,3342.0,3341.9,0.4288]
[1735617605212,3.53313693,3342.0,3341.9,1.80531459]
[1735617605417,2.14933693,3342.0,3341.9,1.80531459]
[1735617605613,4.71084924,3342.2,3341.9,1.50556459]
[1735617605813,4.71084924,3342.2,3342.1,4.58429459]
[1735617606318,4.71084924,3342.2,3342.1,5.01349459]
[1735617606517,2.35776948,3342.5,3342.1,44.437]
[1735617606820,2.35776948,3342.5,3342.4,0.2997]
[1735617607023,2.65746948,3342.5,3342.2,0.29972]
[1735617607212,1.49426459,3342.4,3342.2,0.29972]
[1735617607411,1.49426459,3342.4,3342.3,40.8]
[1735617607616,1.49426459,3342.4,3342.3,46.56443868]
[1735617608119,1.07676459,3342.6,3342.3,46.26472868]
[1735617608315,0.4304,3342.7,3342.4,0.2997]
[1735617608515,0.4304,3342.7,3342.3,46.26472868]
[1735617608717,7.91864924,3342.9,3342.4,1.53656459]
[1735617608718,4.71084924,3342.9,3342.4,1.53656459]
[1735617608922,4.71084924,3342.9,3342.8,0.29967]
[1735617609123,5.78761383,3342.9,3342.8,0.29967]
[1735617609320,5.78761383,3342.9,3342.7,0.29967]
[1735617609721,5.78761383,3342.9,3342.6,0.4602]
[1735617610026,5.78761383,3342.9,3342.8,7.35890898]
[1735617610027,1.07676459,3342.9,3342.8,7.35890898]
[1735617610221,4.71084924,3343.3,3342.8,7.05923898]
[1735617610423,4.71084924,3343.3,3343.1,0.29964]
[1735617610424,5.14914924,3343.3,3343.1,0.29964]
[1735617610724,5.44877924,3343.3,3343.0,0.29965]
[1735617610918,5.44877924,3343.3,3342.8,8.24323898]
[1735617610919,5.14914924,3343.3,3342.8,8.24323898]
[1735617611221,0.4383,3343.3,3343.0,0.29965]
[1735617611426,0.4383,3343.3,3343.1,0.29964]
[1735617612225,0.29964,3343.2,3342.9,5.76438868]
[1735617612424,0.4383,3343.3,3342.8,8.24323898]
[1735617612726,0.29964,3343.2,3342.8,8.24323898]
[1735617612919,0.29964,3343.2,3342.8,8.54289898]
[1735617613118,0.4383,3343.3,3342.8,8.24323898]
[1735617613319,0.4383,3343.3,3342.8,7.05923898]
[1735617613320,0.29966,3342.9,3342.8,7.05923898]
[1735617613521,3.2078,3343.0,3342.7,7.05923898]
[1735617613720,3.45057988,3342.8,3342.7,7.05923898]
[1735617614823,3.45057988,3342.8,3342.3,0.29971]
[1735617615123,0.4313,3342.7,3342.2,8.24223898]
[1735617615329,0.4313,3342.7,3342.4,0.2997]
[1735617615521,0.4313,3342.7,3342.2,8.24223898]
[1735617615723,0.29969,3342.6,3342.2,8.54195898]
[1735617616033,0.4313,3342.7,3342.2,8.24223898]
[1735617616329,0.4313,3342.7,3342.4,0.2997]
[1735617616731,0.4313,3342.7,3342.2,8.24223898]
[1735617617031,0.4313,3342.7,3342.6,0.29969]
[1735617617328,3.2078,3343.0,3342.9,0.29966]
[1735617617527,5.55034924,3343.3,3343.1,0.29964]
[1735617617729,5.55034924,3343.3,3343.1,41.09964]
[1735617618322,5.84997924,3343.3,3343.1,40.8]
[1735617618522,5.55034924,3343.3,3342.8,0.4505]
[1735617618724,5.55034924,3343.3,3343.0,0.29965]
[1735617618925,0.8395,3343.3,3342.8,0.4505]
[1735617619127,1.13913,3343.3,3343.1,40.8]
[1735617619323,0.8395,3343.3,3343.1,40.8]
[1735617621031,0.8395,3343.3,3342.8,0.4505]
[1735617621227,0.8395,3343.3,3343.1,0.29964]
[1735617621431,0.8395,3343.3,3343.1,41.09964]
[1735617622227,0.8395,3343.3,3343.1,0.29964]
[1735617622431,0.8395,3343.3,3343.0,0.29964]
[1735617622630,0.8395,3343.3,3343.0,41.09964]
[1735617624129,0.29964,3343.2,3343.0,40.8]
[1735617624332,0.29964,3343.2,3342.9,0.29966]
[1735617625338,0.8395,3343.3,3342.8,0.4505]
[1735617625939,0.8395,3343.3,3343.2,0.29963]
[1735617628042,0.8395,3343.3,3342.8,0.4505]
[1735617628235,0.8395,3343.3,3343.0,0.29964]
[1735617628731,0.8395,3343.3,3342.8,0.4505]
[1735617628732,0.8395,3343.3,3342.9,0.29966]
[1735617628932,0.29963,3343.2,3342.9,0.29966]
[1735617629134,0.8395,3343.3,3343.0,0.29965]
[1735617629135,1.13912,3343.3,3343.0,0.29965]
[1735617630139,0.8395,3343.3,3343.1,0.29964]
[1735617630740,0.8395,3343.3,3342.8,0.4505]
[1735617630940,0.29964,3343.2,3342.9,0.29966]
[1735617631631,0.29964,3343.2,3342.8,0.4505]
[1735617631840,0.29964,3343.2,3343.0,0.29965]
[1735617632041,1.13913,3343.3,3343.0,0.29965]
[1735617632435,1.13913,3343.3,3342.8,0.4505]
[1735617632639,1.13913,3343.3,3343.1,0.29964]
[1735617633336,0.8395,3343.3,3343.1,0.29963]
[1735617635437,1.13913,3343.3,3343.0,0.29965]
[1735617636441,1.13913,3343.3,3343.1,0.29964]
[1735617636638,0.8395,3343.3,3343.1,0.29964]
[1735617637938,1.13913,3343.3,3343.0,0.29965]
[1735617638243,0.8395,3343.3,3343.1,0.29964]
[1735617639441,0.8395,3343.3,3342.8,0.4505]
[1735617639839,0.8395,3343.3,3343.2,0.29963]
[1735617641849,1.13913,3343.3,3343.0,0.29965]
[1735617642053,0.29964,3343.1,3342.8,5.14907553]
[1735617642352,0.29964,3343.1,3342.8,5.44873553]
[1735617642648,0.8395,3343.3,3342.8,4.69857553]
[1735617642649,0.29966,3343.0,3342.8,4.69857553]
[1735617642845,0.4299,3342.9,3342.8,4.69857553]
[1735617643241,0.4299,3342.9,3342.8,4.99824553]
[1735617643442,0.4299,3342.9,3342.8,0.29967]
[1735617650048,0.4299,3342.9,3342.8,4.99824553]
[1735617651049,0.4299,3342.9,3342.8,10.55569847]
[1735617652054,0.4299,3342.9,3342.8,12.91636192]
[1735617652751,0.29964,3343.2,3342.9,0.29965]
[1735617653146,1.2807,3343.3,3342.8,12.61669192]
[1735617653356,1.2807,3343.3,3343.2,0.29963]
[1735617657749,1.2807,3343.3,3343.2,5.01190754]
[1735617659058,7.91864924,3343.5,3343.4,0.29962]
[1735617659252,8.37184924,3343.5,3343.2,4.71227754]
[1735617659457,8.37184924,3343.5,3343.3,0.29962]
[1735617659657,9.11075924,3343.5,3343.2,5.01190754]
[1735617659959,9.11075924,3343.5,3343.3,0.29962]
[1735617660155,4.39991,3343.5,3343.3,0.29962]
[1735617660355,1.07607559,3343.4,3343.3,0.29962]
[1735617661059,1.37569559,3343.4,3343.2,5.01190754]
[1735617661358,1.07607559,3343.4,3343.2,5.01190754]
[1735617662461,1.07607559,3343.4,3343.3,0.29962]
[1735617662657,0.29962,3343.3,3343.2,4.71227754]
[1735617662853,1.37569559,3343.4,3343.2,5.01190754]
[1735617663156,1.37569559,3343.4,3343.3,4.71227754]
[1735617664254,0.29963,3343.3,3343.1,4.71227754]
[1735617664454,1.07607559,3343.2,3343.1,4.71227754]
[1735617664858,1.37570559,3343.2,3343.1,4.71227754]
[1735617665055,1.07607559,3343.2,3343.1,4.71227754]
[1735617665667,5.79362298,3343.2,3343.1,4.71227754]
[1735617667761,1.37570559,3343.2,3343.1,4.71227754]
[1735617669261,1.07607559,3343.2,3343.1,4.71227754]
[1735617669669,1.37570559,3343.2,3343.1,4.71227754]
[1735617670964,1.07607559,3343.2,3343.1,4.71227754]
[1735617671162,7.92534739,3343.3,3343.1,5.01190754]
[1735617672567,7.92534739,3343.3,3343.2,0.29963]
[1735617673168,3.2078,3343.3,3343.2,5.85893126]
[1735617673467,3.50742,3343.3,3343.2,5.55930126]
[1735617674167,3.2078,3343.3,3343.2,5.85893126]
[1735617674367,3.2078,3343.3,3343.2,4.71089512]
[1735617675760,3.2078,3343.3,3343.1,7.35887898]
[1735617676570,3.2078,3343.3,3343.2,0.29963]
[1735617677264,3.2078,3343.3,3343.1,7.35887898]
[1735617678165,3.2078,3343.3,3343.2,5.5594519]
[1735617678672,3.50742,3343.3,3343.2,5.5594519]
[1735617679274,3.2078,3343.3,3343.1,4.71165477]
[1735617679470,1.37570559,3343.2,3343.1,4.71165477]
[1735617680567,6.09304659,3343.2,3343.1,4.71165477]
[1735617680971,5.79341659,3343.2,3343.1,4.71165477]
[1735617681272,4.717341,3343.2,3343.1,6.08737036]
[1735617681666,3.53783866,3343.2,3343.1,12.91864369]
[1735617683070,6.74563866,3343.3,3343.2,0.29963]
[1735617684569,3.2078,3343.3,3343.2,5.85939471]
[1735617685473,3.2078,3343.3,3343.2,12.91921418]
[1735617686368,3.2078,3343.3,3343.2,5.85939471]
[1735617689074,3.2078,3343.3,3343.2,12.916495]
[1735617690475,4.61391425,3343.4,3343.2,12.616865]
[1735617690670,4.61391425,3343.4,3343.3,0.29962]
[1735617691168,1.07607559,3343.4,3343.3,0.29962]
[1735617692278,1.07607559,3343.4,3343.2,12.916495]
[1735617692476,0.29962,3343.3,3343.2,7.05710029]
[1735617692676,0.29962,3343.3,3343.2,7.35673029]
[1735617693275,3.53783866,3343.3,3343.2,5.00419051]
[1735617694879,3.83745866,3343.3,3343.2,4.70456051]
[1735617695275,3.53783866,3343.3,3343.2,5.00419051]
[1735617696482,3.98443866,3343.4,3343.3,0.29962]
[1735617697479,0.4466,3343.4,3343.3,5.85042578]
[1735617698573,3.98443866,3343.4,3343.3,5.85042578]
[1735617700275,0.4466,3343.4,3343.3,5.85042578]
[1735617702879,3.53783866,3343.5,3343.4,0.29962]
[1735617703085,3.53783866,3343.5,3343.4,0.75142]
[1735617703387,3.53783866,3343.5,3343.4,1.17652]
[1735617704080,1.50937559,3343.7,3343.6,0.2996]
[1735617705389,1.50937559,3343.7,3343.6,4.99769372]
[1735617706182,1.50937559,3343.7,3343.6,4.69809372]
[1735617706586,4.71717559,3343.7,3343.6,4.69809372]
[1735617707184,5.01676559,3343.7,3343.6,4.69809372]
[1735617707685,0.29961,3343.5,3343.4,4.69809372]
[1735617707888,1.37568559,3343.5,3343.4,4.69809372]
[1735617708880,4.61099151,3343.5,3343.2,4.69809372]
[1735617709080,1.07607559,3343.3,3343.2,4.69809372]
[1735617709482,1.50287559,3343.3,3343.2,4.69809372]
[1735617710385,0.4268,3343.3,3343.2,10.54265286]
[1735617711590,0.4268,3343.3,3343.2,5.84455914]
[1735617713787,0.4268,3343.3,3343.2,12.89169972]
[1735617715089,3.53491592,3343.6,3343.2,12.59206972]
[1735617715290,3.53491592,3343.6,3343.5,0.29961]
[1735617716291,5.016921,3343.8,3343.7,0.29959]
[1735617716292,3.53491592,3343.8,3343.7,0.29959]
[1735617716489,3.53491592,3343.8,3343.7,1.37566559]
[1735617716690,3.53491592,3343.8,3343.7,4.58346559]
[1735617716991,2.84301592,3343.8,3343.7,9.58346559]
[1735617717292,2.42341592,3343.8,3343.7,50.38346559]
[1735617717493,10.27902586,3344.5,3343.7,50.62880473]
[1735617717494,5.79341659,3344.3,3343.7,50.62880473]
[1735617717694,5.79341659,3344.3,3344.1,3.2078]
[1735617717896,5.79341659,3344.3,3344.2,0.73494]
[1735617718190,5.79341659,3344.3,3344.2,1.17064]
[1735617719188,1.07607559,3344.3,3344.2,13.75142625]
[1735617720295,0.4374,3344.4,3344.3,0.29953]
[1735617731002,0.29954,3344.3,3344.1,0.29955]
[1735617731601,3.16888045,3344.4,3343.9,0.29957]
[1735617731805,0.29956,3344.1,3343.8,4.98659381]
[1735617732002,0.4168,3344.0,3343.9,0.29957]
[1735617732203,0.8494,3344.0,3343.9,0.29957]
[1735617739205,0.4168,3344.0,3343.9,0.29957]
[1735617739410,0.4168,3344.0,3343.8,2.27178045]
[1735617739411,3.2078,3344.2,3344.1,0.29955]
[1735617740913,0.4449,3344.3,3344.0,4.68702381]
[1735617741214,0.4315,3344.6,3344.5,0.29952]
[1735617742423,0.4315,3344.6,3344.4,0.29952]
[1735617742619,1.07520211,3344.5,3344.4,0.29952]
[1735617749624,0.4315,3344.6,3344.1,3.2078]
[1735617749827,0.4315,3344.6,3344.5,0.29952]
[1735617757128,2.34916104,3345.0,3344.9,0.29948]
[1735617757328,2.27487211,3345.1,3344.9,0.29948]
[1735617758424,0.29948,3344.9,3344.7,41.09949]
[1735617758625,1.37468211,3344.9,3344.7,41.0995]
[1735617759231,1.07520211,3344.9,3344.8,0.29949]
[1735617759625,1.07520211,3344.9,3344.7,40.8]
[1735617759826,1.37468211,3344.9,3344.7,41.09949]
[1735617761234,1.37468211,3344.9,3344.7,0.29949]
[1735617761434,3.72655199,3344.9,3344.7,0.29949]
[1735617761735,3.42707199,3344.9,3344.6,4.68702381]
[1735617761929,1.37470211,3344.7,3344.6,4.68702381]
[1735617762830,1.37470211,3344.7,3344.6,3.99552381]
[1735617763636,0.29951,3344.6,3344.5,3.2078]
[1735617763939,1.21461,3344.6,3344.5,3.2078]
[1735617764140,0.9151,3344.6,3344.5,3.2078]
[1735617764335,0.9151,3344.6,3344.5,3.50732]
[1735617764735,1.21461,3344.6,3344.5,3.2078]
[1735617765136,0.9151,3344.6,3344.5,3.2078]
[1735617765338,0.4561,3344.6,3344.5,3.50732]
[1735617765538,2.35465908,3344.7,3344.5,3.2078]
[1735617765740,2.35465908,3344.7,3344.6,0.71951]
[1735617766636,2.77845908,3344.9,3344.8,0.29949]
[1735617767341,2.35465908,3344.9,3344.8,0.29949]
[1735617767847,2.79545908,3345.0,3344.9,0.29948]
[1735617768544,2.79545908,3345.0,3344.6,7.45585711]
[1735617768742,2.79545908,3345.0,3344.8,0.29949]
[1735617768947,0.4579,3344.9,3344.8,0.29949]
[1735617769243,0.4579,3344.9,3344.8,41.09949]
[1735617770145,0.4579,3344.9,3344.8,40.8]
[1735617770338,3.11203908,3344.9,3344.8,40.8]
[1735617770644,3.11203908,3344.9,3344.6,0.7195]
[1735617770841,0.29949,3344.8,3344.6,0.42]
[1735617771239,0.29949,3344.8,3344.6,41.22]
[1735617771542,2.81255908,3344.9,3344.5,3.2078]
[1735617771543,0.29951,3344.6,3344.5,3.2078]
[1735617771742,2.35465908,3344.7,3344.5,3.2078]
[1735617771743,2.65416908,3344.7,3344.5,3.2078]
[1735617772543,2.35465908,3344.6,3344.5,3.2078]
[1735617773746,2.35465908,3344.6,3344.5,3.50732]
[1735617777944,0.4509,3344.7,3344.6,0.29951]
[1735617778644,2.35465908,3344.8,3344.5,3.2078]
[1735617778845,2.35465908,3344.8,3344.7,0.2995]
[1735617780648,2.65414908,3344.8,3344.6,0.2995]
[1735617781040,2.35465908,3344.8,3344.5,3.2078]
[1735617781247,2.35465908,3344.8,3344.7,0.2995]
[1735617782752,0.4579,3344.9,3344.8,0.29949]
[1735617782948,3.25205908,3345.0,3344.9,0.29948]
[1735617782949,2.35465908,3345.0,3344.9,0.29948]
[1735617784048,2.35465908,3345.1,3344.8,7.03585711]
[1735617784254,2.35465908,3345.1,3345.0,0.29947]
[1735617790263,2.79885908,3345.2,3344.9,3.2078]
[1735617790465,2.79885908,3345.2,3345.1,0.29946]
[1735617793062,0.4442,3345.2,3345.1,0.29946]
[1735617798266,3.97605784,3345.2,3345.1,0.29946]
[1735617799766,2.79873418,3345.2,3345.1,0.29946]
[1735617800562,2.79873418,3345.2,3345.1,1.37426628]
[1735617800765,2.79873418,3345.2,3345.1,0.29946]
[1735617802165,2.79873418,3345.2,3345.1,1.37426628]
[1735617804673,2.79873418,3345.2,3345.1,0.29946]
[1735617806670,2.79873418,3345.2,3344.9,3.2078]
[1735617806671,3.87354046,3345.2,3344.9,3.2078]
[1735617806877,0.29947,3345.0,3344.9,3.2078]
[1735617807079,3.87354046,3345.2,3344.9,3.2078]
[1735617807273,0.29947,3345.1,3344.9,3.2078]
[1735617807576,0.29947,3345.1,3344.8,7.33533711]
[1735617807783,2.65400418,3345.1,3344.8,0.29948]
[1735617808279,2.65400418,3345.1,3344.7,8.54616339]
[1735617808574,2.65400418,3345.1,3344.9,0.29948]
[1735617809177,2.35453418,3345.0,3344.9,0.29948]
[1735617809476,2.35453418,3345.0,3344.7,1.07480628]
[1735617809676,0.8734,3344.9,3344.7,1.07480628]
[1735617810176,0.4513,3344.8,3344.7,1.37430628]
[1735617810771,0.4513,3344.8,3344.7,0.2995]
[1735617810972,0.4513,3344.8,3344.7,1.37430628]
[1735617811978,2.80583418,3344.8,3344.7,1.37430628]
[1735617812777,2.80583418,3344.8,3344.7,6.86561819]
[1735617814281,2.35453418,3344.8,3344.7,6.86561819]
[1735617814483,2.35453418,3344.8,3344.7,7.29661819]
[1735617815181,2.35453418,3344.9,3344.8,0.29949]
[1735617815381,2.35453418,3344.9,3344.8,0.71679]
[1735617815581,2.35453418,3344.9,3344.8,1.14489]
[1735617818389,2.35453418,3344.9,3344.8,6.63529339]
[1735617822585,2.35453418,3344.9,3344.8,5.78989339]
[1735617822783,0.4315,3345.0,3344.9,0.29948]
[1735617823490,0.4315,3345.0,3344.9,1.37428628]
[1735617824381,2.78603418,3345.0,3344.9,13.91511283]
[1735617826393,2.78603418,3345.0,3344.9,6.86468967]
[1735617827390,0.4315,3345.0,3344.9,6.86468967]
[1735617827592,0.4315,3345.0,3344.9,10.07248967]
[1735617827899,3.53185784,3345.1,3345.0,0.29947]
[1735617828897,3.53185784,3345.1,3345.0,12.838777]
[1735617829991,4.717341,3345.2,3344.9,11.33150989]
[1735617830191,4.717341,3345.2,3345.1,0.29946]
[1735617831294,4.717341,3345.2,3345.1,1.37426628]
[1735617833696,0.8712,3345.3,3345.2,0.29945]
[1735617833697,5.588541,3345.3,3345.2,0.29945]
[1735617837698,5.140941,3345.3,3345.2,0.29945]
[1735617837896,3.95914242,3345.3,3345.2,5.78966135]
[1735617838203,3.53554242,3345.3,3345.2,47.77066135]
[1735617839099,2.356783,3345.4,3345.3,0.29945]
[1735617839300,2.356783,3345.4,3345.3,1.37425628]
[1735617840404,1.75677155,3345.4,3345.3,1.37425628]
[1735617840703,1.75677155,3345.8,3345.7,0.29941]
[1735617841000,1.75677155,3345.8,3345.7,3.50721]
[1735617841901,1.75677155,3345.8,3345.7,0.29941]
[1735617842203,1.51470628,3345.9,3345.8,0.2994]
[1735617844202,0.4399,3345.9,3345.8,0.2994]
[1735617844404,0.4399,3345.9,3345.8,1.37420628]
[1735617844605,0.4399,3345.9,3345.8,1.82680628]
[1735617845106,0.4399,3345.9,3345.8,1.37420628]
[1735617845308,0.4399,3345.9,3345.8,0.2994]
[1735617845598,0.4399,3345.9,3345.7,3.2078]
[1735617845803,0.4399,3345.9,3345.8,0.2994]
[1735617847208,0.4399,3345.9,3345.7,3.2078]
[1735617847502,1.07480628,3345.8,3345.7,3.2078]
[1735617847801,0.4399,3345.9,3345.7,3.2078]
[1735617848002,0.4399,3345.9,3345.8,0.2994]
[1735617849510,0.4399,3345.9,3345.8,1.37420628]
[1735617849708,3.98744242,3346.0,3345.9,0.29939]
[1735617850102,3.53554242,3346.0,3345.9,0.72219]
[1735617851903,0.4271,3346.3,3345.9,0.4228]
[1735617852098,0.4271,3346.3,3346.2,3.50716]
[1735617854102,1.37412628,3346.8,3346.2,3.2078]
[1735617854309,0.4438,3346.6,3346.3,1.91820628]
[1735617854504,0.4438,3346.6,3346.5,0.29934]
[1735617856705,0.4438,3346.6,3346.3,1.49230628]
[1735617856912,0.4438,3346.6,3346.4,0.29934]
[1735617857207,0.4438,3346.6,3346.5,0.29934]
[1735617859409,1.81793628,3346.6,3346.3,0.29935]
[1735617859606,1.51860628,3346.6,3346.2,3.2078]
[1735617859902,0.29936,3346.3,3346.2,3.2078]
[1735617860108,1.07480628,3346.4,3346.2,3.2078]
[1735617860299,1.37415628,3346.4,3346.2,3.2078]
[1735617862010,0.29936,3346.3,3346.2,3.2078]
[1735617862713,4.28260628,3346.4,3345.5,0.29942]
[1735617863011,0.29941,3345.7,3345.5,0.29943]
[1735617863204,1.07480628,3345.8,3345.5,1.37423628]
[1735617863205,1.3292,3345.6,3345.5,1.37423628]
[1735617864310,1.3292,3345.6,3345.5,0.29943]
[1735617868711,0.9016,3345.6,3345.5,0.29943]
[1735617869111,0.4264,3345.9,3345.8,0.2994]
[1735617869313,3.99274242,3346.0,3345.9,0.29939]
[1735617869515,3.99274242,3346.0,3345.9,0.71929]
[1735617870115,3.53554242,3346.0,3345.9,41.51929]
[1735617870616,3.53554242,3346.0,3345.9,41.97969]
[1735617870814,5.87387724,3346.4,3345.9,41.6803]
[1735617871006,4.45054242,3346.6,3346.4,0.29934]
[1735617871318,4.45054242,3346.6,3346.5,0.29934]
[1735617872314,0.915,3346.6,3346.5,0.29934]
[1735617881126,0.915,3346.6,3346.4,0.29934]
[1735617881324,0.4208,3346.5,3346.4,0.29934]
[1735617881717,0.915,3346.6,3346.5,0.29934]
[1735617883726,4.45054242,3346.6,3346.5,0.29934]
[1735617885022,0.915,3346.6,3346.5,1.37327116]
[1735617886927,0.915,3346.6,3346.5,0.29934]
[1735617887627,0.915,3346.6,3346.5,1.37327116]
[1735617889929,0.915,3346.6,3346.2,3.658]
[1735617889930,1.98893116,3346.6,3346.2,3.658]
[1735617890133,1.98893116,3346.6,3346.4,4.97851944]
[1735617890434,1.98893116,3346.6,3346.5,0.29934]
[1735617890734,0.915,3346.6,3346.5,0.29934]
[1735617896533,0.915,3346.6,3346.4,1.07393116]
[1735617896836,1.98893116,3346.6,3346.4,0.29934]
[1735617897025,0.915,3346.6,3346.5,0.29934]
[1735617900533,1.98893116,3346.6,3346.2,7.88697944]
[1735617900736,2.28826116,3346.6,3346.4,0.29935]
[1735617901236,0.915,3346.6,3346.5,0.29934]
[1735617902238,1.21433,3346.6,3346.3,0.29936]
[1735617902735,0.29936,3346.3,3346.2,3.2078]
[1735617903329,0.73226,3346.3,3346.2,1.8244]
[1735617903532,0.29936,3346.2,3346.1,4.67917944]
[1735617903727,4.58109116,3346.2,3346.1,4.67917944]
[1735617904133,0.29937,3346.1,3345.7,4.67917944]
[1735617904333,0.29939,3346.0,3345.7,4.97858944]
[1735617904537,0.29939,3346.0,3345.7,5.39558944]
[1735617904733,4.28173116,3346.2,3345.7,5.09617944]
[1735617905130,4.58110116,3346.2,3345.9,0.29939]
[1735617905328,0.29937,3346.1,3345.9,0.29939]
[1735617905837,0.4329,3346.3,3346.0,1.07393116]
[1735617906033,0.4329,3346.3,3346.1,0.4384]
[1735617906235,0.73226,3346.3,3346.0,0.29938]
[1735617906734,0.894,3346.2,3346.0,0.29938]
[1735617906926,0.894,3346.2,3346.1,0.29937]
[1735617907126,3.2078,3346.6,3346.4,0.29934]
[1735617907332,3.6581,3346.6,3346.5,0.29934]
[1735617907532,3.6581,3346.6,3346.5,1.37327116]
[1735617907734,0.4503,3346.6,3346.5,0.29934]
[1735617908438,0.4503,3346.6,3346.4,0.4384]
[1735617908633,0.4503,3346.6,3346.5,0.29934]
[1735617909440,4.717341,3346.7,3346.6,0.29933]
[1735617910939,4.717341,3346.7,3346.6,41.09933]
[1735617911730,4.717341,3346.7,3346.6,40.8]
[1735617912135,5.016661,3346.7,3346.6,40.8]
[1735617912328,5.016661,3346.7,3346.4,0.73774]
[1735617912329,0.29933,3346.6,3346.4,0.73774]
[1735617912535,2.38033116,3346.8,3346.4,0.4384]
[1735617912836,1.60572,3346.8,3346.5,0.29934]
[1735617913132,2.38033116,3346.8,3346.5,0.29934]
[1735617913339,0.29932,3346.7,3346.5,0.29934]
[1735617913539,2.67964116,3346.8,3346.6,0.29933]
[1735617913735,6.20756596,3346.8,3346.6,0.29933]
[1735617913936,4.8343248,3346.8,3346.6,0.29933]
[1735617914746,2.67965116,3346.8,3346.6,4.67917944]
[1735617914944,0.29932,3346.7,3346.6,4.67917944]
[1735617915135,2.67964116,3346.8,3346.6,4.67917944]
[1735617915641,2.38033116,3346.8,3346.6,4.67917944]
[1735617915837,0.00238515,3346.7,3346.5,4.67917944]
[1735617916645,0.00238515,3346.7,3346.6,0.29933]
[1735617917542,0.00238515,3346.7,3346.6,0.73313]
[1735617918134,0.00238515,3346.7,3346.6,5.41230944]
[1735617918738,0.00238515,3346.7,3346.6,5.11297944]
[1735617919041,0.00238515,3346.7,3346.6,5.41230944]
[1735617919946,0.00238515,3346.7,3346.6,5.11297944]
[1735617920147,0.00238515,3346.7,3346.6,5.41230944]
[1735617920443,0.00238515,3346.7,3346.6,0.73313]
[1735617923745,4.71340937,3346.7,3346.6,0.73313]
[1735617926748,0.29933,3346.6,3346.4,5.11757944]
[1735617927049,0.4345,3346.6,3346.5,0.29934]
[1735617927352,4.71340937,3346.7,3346.6,0.29933]
[1735617927544,4.71340937,3346.7,3346.6,0.75043]
[1735617927545,0.00238515,3346.7,3346.6,0.75043]
[1735617928839,3.53531905,3346.7,3346.6,5.42960944]
[1735617929651,0.00238515,3346.7,3346.6,13.28904272]
[1735617932754,0.00238515,3346.7,3346.6,6.246421]
[1735617935155,0.00238515,3346.7,3346.6,13.28804609]
[1735617935457,0.00238515,3346.7,3346.6,12.83694609]
[1735617935757,0.43368515,3346.7,3346.6,12.83694609]
[1735617936353,0.43368515,3346.7,3346.6,0.29933]
[1735617938252,0.86908515,3346.7,3346.6,0.29933]
[1735617938660,0.86908515,3346.7,3346.5,0.29933]
[1735617940057,0.86908515,3346.7,3346.4,0.4384]
[1735617940258,0.86908515,3346.7,3346.6,0.29933]
[1735617943165,0.86908515,3346.7,3346.6,10.49627043]
[1735617943462,0.86908515,3346.7,3346.6,10.19694043]
[1735617943859,0.86908515,3346.7,3346.6,10.49627043]
[1735617944059,0.86908515,3346.7,3346.6,4.99379448]
[1735617944260,4.40114499,3346.7,3346.6,4.99379448]
[1735617944660,4.40114499,3346.7,3346.6,4.69446448]
[1735617945468,4.70046499,3346.7,3346.6,4.69446448]
[1735617946764,4.70046499,3346.7,3346.5,4.69446448]
[1735617946962,1.07393116,3346.6,3346.5,4.69446448]
[1735617947467,1.07393116,3346.6,3346.5,4.99380448]
[1735617947868,1.07393116,3346.6,3346.5,0.29934]
[1735617948462,1.07393116,3346.6,3346.4,4.69446448]
[1735617948663,1.37326116,3346.6,3346.4,4.99381448]
[1735617949369,1.07393116,3346.6,3346.4,4.99381448]